Cogmind - Beta 16.1 @@@ ROGUE MODE // 2026.02.15 @ 00:20:48 Player: Genericgamer16 Result: Destroyed by D-53 Grenadier with Mini Grenade Launcher Performance ------------- Evolutions (3) 1500 Regions Visited (5) 1000 Robots Destroyed (124) 620 Value Destroyed (3938) 3938 Prototype IDs (10) 200 Alien Tech Used (0) 0 Bonus (298) 298 TOTAL SCORE: 7556 Bonus ------- Follower Combat Kills 349 Friendly Fire -51 Cogmind --------- Core Integrity 0/700 Matter 270/300 Energy 36/150 System Corruption 2% Temperature Cool (0) Movement Core (550) Ox10 Location -7/Factory Parts ------- > --- POWER (1) -------- Micro Nuclear Core > --- PROPULSION (2) --- (None) > --- UTILITY (7) ------ Large Storage Unit Core Analyzer Armor Integrity Analyzer Weapon Cycler Improved Shield Generator Hacking Suite > --- WEAPON (3) ------- (None) > --- INVENTORY (15) --- Improved Deuterium Engine Armored Treads Wheel Wheel Improved Heat Sink Improved Signal Interpreter System Restoration Module Remote Datajack Peak State ------------ > --- POWER ------------ Improved Deuterium Engine > --- PROPULSION ------- VSS Leg Improved Carbon-fiber Leg > --- UTILITY ---------- Improved Cooling System Large Storage Unit Core Analyzer Armor Integrity Analyzer Weapon Cycler Improved Shield Generator Hacking Suite > --- WEAPON ----------- Heavy Laser Plasma Cannon Flak Gun > --- INVENTORY -------- Light Deuterium Engine Light Deuterium Engine Light Nuclear Core Micro Nuclear Core Armored Treads Improved Heat Sink Improved Heat Sink Improved Cooling System Improved Signal Interpreter Particle Charger Weapon Cycler System Restoration Module Lightning Gun Heavy Laser Remote Datajack [Rating: 52] Favorites ----------- Power Improved Deuterium Engine Engine Improved Deuterium Engine Power Core Nuclear Core Propulsion Improved Treads Treads Improved Treads Leg Improved Carbon-fiber Leg Wheel Armored Huge Wheel Utility Large Storage Unit Device Improved Heat Sink Storage Large Storage Unit Processor Core Analyzer Hackware Hacking Suite Weapon Field Laser Energy Gun Field Laser Energy Cannon Plasma Cannon Ballistic Gun Flak Gun Special Weapon Remote Datajack Build | -11 -10 -9 -9 -8 -7 ------- Run | Yrd Mat Mat Sto Mat Fac Slots Evolved 6 | . . 2 . 2 2 Power . | . . . . . . Propulsion . | . . . . . . Utility 5 | . . 1 . 2 2 Weapon 1 | . . 1 . . . Parts Attached 103 | 6 8 20 2 40 27 Power 17 | 1 1 3 1 8 3 Engine 10 | 1 1 3 1 3 1 Core 7 | . . . . 5 2 Reactor . | . . . . . . Propulsion 21 | 2 1 4 . 7 7 Treads 12 | . . 4 . 7 1 Leg 5 | 2 1 . . . 2 Wheel 4 | . . . . . 4 Hover . | . . . . . . Flight . | . . . . . . Utility 31 | 1 2 6 . 15 7 Device 17 | . 1 2 . 9 5 Storage 5 | 1 . 1 . 3 . Processor 5 | . 1 1 . 2 1 Hackware 4 | . . 2 . 1 1 Protection . | . . . . . . Artifact . | . . . . . . Weapon 34 | 2 4 7 1 10 10 Energy Gun 23 | . 2 7 . 7 7 Energy Cannon 2 | . 1 . . . 1 Ballistic Gun 7 | 2 1 . . 3 1 Ballistic Cannon . | . . . . . . Launcher . | . . . . . . Special Weapon 2 | . . . 1 . 1 Impact Weapon . | . . . . . . Slashing Weapon . | . . . . . . Piercing Weapon . | . . . . . . Special Melee Weapon . | . . . . . . Unidentified Prototypes 2 | . . . 1 1 . Corrupted Parts 1 | . . . . 1 . System Corruption 1 | . . . . 1 . Parts Lost 63 | . 5 9 . 31 18 Power 12 | . 1 2 . 6 3 Propulsion 15 | . 3 1 . 8 3 Utility 12 | . . 2 . 7 3 Weapon 24 | . 1 4 . 10 9 Highest Loss Streak 13 | . 3 6 . 6 13 To Critical Strikes . | . . . . . . Average Backups 12 | 3 6 9 14 13 14 Power 2 | . 1 . 1 2 3 Propulsion 2 | 2 3 3 3 2 . Utility 5 | . . 3 7 6 7 Weapon 1 | . 1 1 2 2 1 Tool/Special . | . . . . . . Unused Backups 37 | . 3 5 2 9 18 Power 9 | . . 2 2 . 5 Propulsion 7 | . 3 1 . 1 2 Utility 15 | . . . . 7 8 Weapon 6 | . . 2 . 1 3 Tool/Special . | . . . . . . Average Slot Usage (%) 94 | . 93 85 100 95 94 Engine 7 | . 13 10 11 6 5 Core 1 | . . . . 2 1 Treads 9 | . . 19 22 16 . Leg 6 | . 25 . . . 10 Device 15 | . 4 8 11 18 19 Storage 10 | . 14 11 11 14 7 Processor 7 | . 6 4 . 1 15 Hackware 7 | . . 1 11 9 9 Energy Gun 16 | . 4 24 32 24 7 Energy Cannon 2 | . 4 2 . . 3 Ballistic Gun 5 | . 18 . . 1 9 Peak Build Rating 52 | 6 8 23 24 37 52 Average Rating 30 | 4 7 12 23 31 47 On Entrance 13 | . 6 5 23 22 25 Avg Prop Armor Cover (%) 10 | . . . . . 10 Naked Turns . | . . . . . . Heaviest Build 54 | 14 15 35 38 46 54 Greatest Support 46 | 20 20 46 46 46 30 Greatest Overweight (x) 17 | 2 4 4 . 10 17 Average Overweight (x) . | . . . . . 1 Largest Inventory Capacity 15 | 8 8 15 15 15 15 Average Capacity 14 | 7 8 14 15 15 14 Most Carried 15 | 6 8 15 15 15 15 Average Carried 12 | 3 6 9 14 14 14 Final Capacity 15 | 8 8 15 15 15 15 Final Carried 15 | 6 7 15 15 14 8 Class Distribution -------------------- 45% | Scavenger-Gunner 27% | Gunner 18% | Mutant 4% | Scavenger-Mutant Dominant Class ---------------- Mutant | -10/Materials Gunner | -9/Materials Gunner | -9/Storage Gunner | -8/Materials Scavenger-Gunner | -7/Factory Resources | -11 -10 -9 -9 -8 -7 ----------- Run | Yrd Mat Mat Sto Mat Fac Matter Collected 2133 | 242 358 282 33 468 750 Remotely . | . . . . . . Salvage Created 4625 | . 646 669 284 2140 886 Parts 225 | . 45 32 11 98 39 Haulers Intercepted 2 | . . 1 . 1 . Recyclers Shooed 1 | . 1 . . . . Parts Field Recycled . | . . . . . . Retrieved Matter . | . . . . . . Parts Self-Destructed . | . . . . . . Prevented . | . . . . . . Parts Restored . | . . . . . . Kills | -11 -10 -9 -9 -8 -7 ------- Run | Yrd Mat Mat Sto Mat Fac Combat Hostiles Destroyed 98 | . 20 15 3 43 17 Guns 83 | . 14 15 3 37 14 Cannons 9 | . 6 . . . 3 AOE 3 | . . . . 3 . Classes Destroyed 15 | . 4 3 2 4 2 Worker 4 | . . . . 1 3 Builder 3 | . . . . 1 2 Hauler 2 | . . 1 . 1 . Recycler 2 | . . . 1 . 1 Operator 6 | . 2 . . 2 2 Watcher 12 | . 2 2 1 5 2 Swarmer 23 | . 9 4 . 10 . Grunt 42 | . 11 6 . 21 4 Brawler 1 | . . . 1 . . Duelist 1 | . . 1 . . . Sentry 16 | . . 4 2 7 3 Specialist 4 | . . . . 4 . Hunter 1 | . . . . 1 . Programmer 6 | . . . . . 6 Assembled 3 | . . . . . 3 Thug 1 | . . . . . 1 Best Kill Streak 9 | . 5 6 1 9 4 Combat Bots Only 6 | . 3 6 1 5 3 Max Kills in Single Turn 2 | . 1 1 1 2 2 Gunslinging 1 | . . . . 1 . Exploded 1 | . . . . 1 . Melee . | . . . . . . Uniques/NPCs Destroyed . | . . . . . . Combat | -11 -10 -9 -9 -8 -7 -------- Run | Yrd Mat Mat Sto Mat Fac Hostile Shots Fired 904 | . 120 86 21 370 307 Missed 251 | . 27 20 7 98 99 Hits 653 | . 93 66 14 272 208 Melee 22 | . . 7 . . 15 Projectile 631 | . 93 59 14 272 193 AOE 19 | . . . . . 19 Critical Strikes 24 | . 1 1 . 16 6 Part Disruptions 1 | . . . . . 1 Damage Taken 8506 | . 916 916 235 3649 2790 Core 1560 | . 208 102 54 493 703 Absorbed by Shields 728 | . . 4 . 275 449 Regen/Repaired (Parts) 392 | . . . . . 392 Core Remaining (%) 46 | 100 16 . 61 10 . Volleys Fired 380 | . 76 64 23 136 81 Largest 3 | . 2 3 3 3 3 Hottest 226 | . 100 152 226 191 218 Shots Fired 934 | . 150 144 54 377 209 Gun 858 | . 120 125 53 377 183 Cannon 74 | . 30 19 . . 25 Launcher . | . . . . . . Special 2 | . . . 1 . 1 Kinetic 216 | . 90 5 . 19 102 Thermal 650 | . 60 139 54 296 101 Explosive . | . . . . . . Electromagnetic 67 | . . . . 62 5 Robot Hit Streak 18 | . 12 13 9 18 12 Robot Miss Streak 8 | . 5 4 2 6 8 Penetration Max . | . . . . . . Secondary Targets 15 | . . 4 . 11 . Max Gunslinging Chain 1 | . . 1 . 1 . Shots Hit Robots 537 | . 85 78 28 217 129 Core Hits 261 | . 34 31 12 90 94 Critical Kills . | . . . . . . Critical Parts Destroyed 2 | . . . . 1 1 Critical Strikes 15 | . . 1 1 9 4 Burn 13 | . . 1 1 8 3 Destroy 2 | . . . . 1 1 Melee Attacks . | . . . . . . Impact . | . . . . . . Slashing . | . . . . . . Piercing . | . . . . . . Sneak Attacks . | . . . . . . Combat Hostiles . | . . . . . . Follow-up Attacks . | . . . . . . Damage Inflicted 9118 | . 1130 935 536 4043 2474 Guns 7982 | . 826 847 536 3736 2037 Cannons 821 | . 304 88 . . 429 Explosions 307 | . . . . 307 . Melee . | . . . . . . Ramming 8 | . . . . . 8 Kinetic 2052 | . 674 36 . 129 1213 Thermal 6329 | . 456 899 536 3219 1219 Explosive . | . . . . . . Electromagnetic 729 | . . . . 695 34 Impact . | . . . . . . Slashing . | . . . . . . Piercing . | . . . . . . Highest Corruption 2 | . . . . 2 2 Average Corruption 1 | . . . . 1 1 Corruption Purged . | . . . . . . Corruption Blocked . | . . . . . . Effects 18 | . . . . 8 10 Message Errors 6 | . . . . 3 3 Matter Fused 4 | . . . . 3 1 Heat Flow Errors 2 | . . . . . 2 Energy Discharges 2 | . . . . . 2 Parts Rejected 2 | . . . . 1 1 Data Loss (minor) 1 | . . . . 1 . Weapon Failures 1 | . . . . . 1 Overload Shots . | . . . . . . Overflow Damage 36 | . . . . 29 7 Projectiles 7 | . . . . . 7 Explosions 29 | . . . . 29 . Melee . | . . . . . . Knockbacks . | . . . . . . Impact . | . . . . . . Kinetic . | . . . . . . Secondary . | . . . . . . Self-Inflicted Damage 56 | . . . . 53 3 Shots 1 | . . . . 1 . Rammed 3 | . . . . . 3 Targets Rammed 3 | . . . . . 3 Kicked . | . . . . . . Crushed . | . . . . . . Highest Temperature 400 | . 117 289 342 400 224 Average Temperature 82 | . 38 77 143 96 29 Received Heat Transfer 2649 | . 336 216 78 1566 453 Effects 9 | . . 2 . 7 . Shutdowns 1 | . . . . 1 . Energy Bleed 1 | . . . . 1 . Interference 7 | . . 2 . 5 . Siege Activations . | . . . . . . Martial Activations . | . . . . . . Shielding Activations . | . . . . . . Robots Disrupted . | . . . . . . Combat Hostiles . | . . . . . . Robots Corrupted . | . . . . . . Combat Hostiles . | . . . . . . Parts Fried 3 | . . . . 2 1 Impact Corruptions . | . . . . . . Robots Melted 3 | . . . . 3 . Combat Hostiles 3 | . . . . 3 . Parts Melted 35 | . 2 2 2 23 6 Heat Transferred 14148 | . 979 2105 1258 7293 2513 Parts Sabotaged . | . . . . . . Parts Stolen . | . . . . . . Parts Stripped . | . . . . . . Power Chain Reactions 5 | . . . . 5 . Alert | -11 -10 -9 -9 -8 -7 ------- Run | Yrd Mat Mat Sto Mat Fac Maximum Alert Level 1 | . 1 . . 1 . Low Security (%) 81 | 100 98 100 100 36 100 Level 1 18 | . 1 . . 63 . Level 2 . | . . . . . . Level 3 . | . . . . . . Level 4 . | . . . . . . Level 5 . | . . . . . . High Security . | . . . . . . Max Security . | . . . . . . Peak Influence 373 | . 200 149 188 373 147 Initial 147 | . . 77 17 70 147 Average 105 | . 82 72 119 206 47 Influence Increases 3389 | . 541 427 458 1377 586 Destroy 0b10 Robot/C 2160 | . 400 300 280 900 280 Destroy 0b10 Robot/NC 150 | . 20 15 15 50 50 Destroy Leader 558 | . 84 76 82 202 114 Allied During Kill 45 | . . . 41 4 . Successful Hack 124 | . 18 5 23 29 49 Disable Machine 30 | . . . . 30 . Destroy Structure 37 | . 4 1 2 27 3 Lose Combat Pursuer 285 | . 15 30 15 135 90 Influence Decreases 3325 | . 357 568 332 1221 847 Entered New Map 410 | . . 107 26 99 178 Time Decay 2120 | . 307 406 257 608 542 Lost Part 542 | . 50 55 . 310 127 Lost Ally 40 | . . . 20 20 . Purge Threat 213 | . . . 29 184 . Squads Dispatched 29 | . 5 1 2 10 11 Investigation 7 | . 2 . . 4 1 Extermination 6 | . . . . . 6 Reinforcement 14 | . 3 1 . 6 4 Assault 2 | . . . 2 . . Garrison . | . . . . . . Intercept . | . . . . . . Searches Triggered . | . . . . . . Construction Impeded . | . . . . . . Haulers Reinforced 1 | . . . . . 1 Active Scanning Responses . | . . . . . . Cargo Convoy Interrupts 1 | . . . . . 1 Stealth | -11 -10 -9 -9 -8 -7 --------- Run | Yrd Mat Mat Sto Mat Fac Distress Signals 9 | . . 1 1 5 2 Communications Jammed . | . . . . . . Distress Signals . | . . . . . . Times Spotted 196 | . 30 20 19 73 54 Peak Tracking Total 12 | . 6 7 7 8 12 Tactical Retreats 17 | . 1 2 1 7 6 Traps | -11 -10 -9 -9 -8 -7 ------- Run | Yrd Mat Mat Sto Mat Fac Traps Triggered 7 | . 2 . . 3 2 Indirectly . | . . . . . . Trap Hack Attempts . | . . . . . . Triggered . | . . . . . . Disarmed . | . . . . . . Reprogrammed . | . . . . . . Reused . | . . . . . . Traps Extracted . | . . . . . . Installed . | . . . . . . Triggered . | . . . . . . Machines | -11 -10 -9 -9 -8 -7 ---------- Run | Yrd Mat Mat Sto Mat Fac Machines Disabled 2 | . . . . 2 . Max in Single Turn 1 | . . . . 1 . Machines Repaired . | . . . . . . Machines Dismantled . | . . . . . . Machines Sabotaged . | . . . . . . Overloaded Fab Kills . | . . . . . . Hacking | -11 -10 -9 -9 -8 -7 --------- Run | Yrd Mat Mat Sto Mat Fac Machines Accessed 32 | . 5 4 7 9 7 Terminals 22 | . 5 3 6 5 3 Fabricators . | . . . . . . Repair Stations 4 | . . . . 1 3 Recycling Units 4 | . . 1 1 2 . Scanalyzers 2 | . . . . 1 1 Garrison Access . | . . . . . . Total Hacks 97 | . 16 8 16 34 23 Successful 61 | . 8 6 10 21 16 Failed 35 | . 8 2 6 12 7 Catastrophic 3 | . 1 . . 1 1 Database Lockouts 1 | . . . . 1 . Manual 56 | . 13 8 8 19 8 Terminals 72 | . 16 6 15 23 12 Fabricators . | . . . . . . Repair Stations 10 | . . . . 1 9 Recycling Units 8 | . . 2 1 5 . Scanalyzers 7 | . . . . 5 2 Garrison Access . | . . . . . . Terminal Hacks 28 | . 4 2 5 11 6 Record 2 | . . . . 1 1 Part Schematic 2 | . . . 1 1 . Robot Analysis 2 | . 1 1 . . . Prototype ID Bank 5 | . 1 1 1 2 . Open Door 2 | . . . 2 . . Branch Access Points 1 | . . . . 1 . Terminal Index 3 | . 1 . . 1 1 Alert Level 3 | . 1 . . 1 1 Unreport Threat 3 | . . . 1 2 . Dispatch Records 1 | . . . . . 1 Security Status 1 | . . . . 1 . Recall Reinforcements 2 | . . . . 1 1 Registered Prototypes 1 | . . . . . 1 Fabricator Hacks . | . . . . . . Repair Station Hacks 8 | . . . . . 8 Scan Component 4 | . . . . . 4 Repair 4 | . . . . . 4 Recycling Unit Hacks 4 | . . 1 1 2 . Report Inventory 3 | . . 1 1 1 . Retrieve Components 1 | . . . . 1 . Scanalyzer 5 | . . . . 4 1 Insert Component 2 | . . . . 2 . Analyze 2 | . . . . 2 . Retrieve Study 1 | . . . . . 1 Garrison Access Hacks . | . . . . . . Unauthorized Hacks 16 | . 4 3 4 4 1 Terminals 14 | . 4 2 4 3 1 Assimilate 1 | . 1 . . . . Botnet 13 | . 3 2 4 3 1 Fabricators . | . . . . . . Repair Stations . | . . . . . . Recycling Units 2 | . . 1 . 1 . Monitor 2 | . . 1 . 1 . Scanalyzers . | . . . . . . Garrison Access . | . . . . . . Data Cores Recovered 1 | . . . 1 . . Used . | . . . . . . Hacking Detections 27 | . 5 3 5 7 7 Full Trace Events 10 | . 2 1 1 5 1 Feedback Events 1 | . . 1 . . . Hackware Fried 1 | . . 1 . . . Feedback Blocked . | . . . . . . Robot Schematics Acquired . | . . . . . . Robots Built . | . . . . . . Authchips . | . . . . . . Time . | . . . . . . Total Robot Build Rating . | . . . . . . Part Schematics Acquired 4 | . . . 1 3 . Parts Built . | . . . . . . Authchips . | . . . . . . Time . | . . . . . . Total Part Build Rating . | . . . . . . Part Studies Acquired 1 | . . . . . 1 Parts Repaired 4 | . . . . . 4 Time 140 | . . . . . 140 Parts Recycled . | . . . . . . Recycled Matter . | . . . . . . Retrieved Matter . | . . . . . . Retrieved Components 10 | . . . . 10 . Parts Scanalyzed 2 | . . . . 2 . Part Schematics Acquired 2 | . . . . 2 . Parts Damaged 1 | . . . . 1 . Bothacking | -11 -10 -9 -9 -8 -7 ------------ Run | Yrd Mat Mat Sto Mat Fac Used RIF Installer . | . . . . . . Robots Hacked 1 | . . . . . 1 Non-combat . | . . . . . . Combat 1 | . . . . . 1 Robot Hacks Applied 1 | . . . . . 1 parse_system 1 | . . . . . 1 Relay Couplers Released . | . . . . . . Fabnet Peak Effective % . | . . . . . . Robots Rewired . | . . . . . . Allies Hacked . | . . . . . . Hacks Repelled . | . . . . . . Allies | -11 -10 -9 -9 -8 -7 -------- Run | Yrd Mat Mat Sto Mat Fac Total Allies 2 | . . . 2 . . Largest Group 2 | . . . 2 1 . Highest-Rated Group 62 | . . . 62 31 . Highest-Rated Ally 31 | . . . 31 31 . Total Orders . | . . . . . . Ally Attacks 50 | . . . 39 11 . Total Damage 836 | . . . 691 145 . Kills 14 | . . . 12 2 . Allies Corrupted . | . . . . . . Allies Melted . | . . . . . . Intel | -11 -10 -9 -9 -8 -7 ------- Run | Yrd Mat Mat Sto Mat Fac Active Infowar (turns) 351 | . 351 . . . . Optics 351 | . 351 . . . . Robot Analysis Total 2 | . 1 1 . . . Derelict Logs Recovered . | . . . . . . Drone Launches . | . . . . . . Drone Recoveries . | . . . . . . Exploration | -11 -10 -9 -9 -8 -7 ------------- Run | Yrd Mat Mat Sto Mat Fac Turns Passed 7199 | 78 773 1037 584 2064 2663 Spaces Moved 3205 | 52 374 458 309 801 1211 Core 57 | 11 19 23 . 2 2 Treads 1543 | . . 435 309 799 . Legs 1114 | 41 355 . . . 718 Wheels 491 | . . . . . 491 Hover . | . . . . . . Flight . | . . . . . . Fastest Speed 50 | 50 120 160 160 160 100 Average Speed 160 | 116 126 164 160 175 162 Slowest Speed 900 | 150 250 250 160 550 900 Overloaded Moves . | . . . . . . Propulsion Burnouts . | . . . . . . Robots Hopped . | . . . . . . Potential Cave-ins . | . . . . . . Cave-ins Triggered . | . . . . . . Exploration Rate (%) 39 | 4 61 30 52 59 29 Regions Visited 5 Branch Regions 1 Pre-discovered Areas . | . . . . . . Known Exits Taken . | . . . . . . Unknown Exits Taken 5 | 1 1 1 1 1 . Scrap Searched . | . . . . . . Spaces Dug 1 | . . . 1 . . Terrain Destroyed 24 | . . . 1 21 2 Melee . | . . . . . . Projectile 3 | . . . 1 . 2 AOE 21 | . . . . 21 . Terrain Rammed . | . . . . . . Walls Destroyed . | . . . . . . Machines Disabled . | . . . . . . Actions | -11 -10 -9 -9 -8 -7 --------- Run | Yrd Mat Mat Sto Mat Fac Total 4489 | 69 525 624 355 1175 1741 Wait 575 | . 53 40 14 122 346 Move 3200 | 51 373 457 308 800 1211 Hop . | . . . . . . Pick Up 138 | 12 10 30 4 42 40 Fast Attach 18 | . . 3 . 8 7 Attach 75 | 6 5 15 . 29 20 Detach 4 | . . 1 . 1 2 Swap 34 | . 3 3 2 15 11 Drop 62 | . 5 11 4 22 20 Fire 380 | . 76 64 23 136 81 Melee . | . . . . . . Ram 3 | . . . . . 3 Kick . | . . . . . . Crush . | . . . . . . Escape Stasis . | . . . . . . Rewire . | . . . . . . Trap . | . . . . . . Miscellaneous . | . . . . . . Route ------- -11/Scrapyard -10/Materials (discovered 2 exits: *Mat / [*Min]) -9/Materials (discovered 2 exits: [*Min] / *Sto) -9/Storage -8/Materials -7/Factory History --------- Turn | Location | Event 9 | -11/Scrapyard | Discovered new exit (range 15) 79 | -11/Scrapyard | Entered Materials 310 | -10/Materials | Build established: Mutant 655 | -10/Materials | Discovered new exit (range 13) 687 | -10/Materials | Core integrity fell below 50% 706 | -10/Materials | Discovered new exit (range 16) 802 | -10/Materials | Core integrity fell below 20% 829 | -10/Materials | Lost 3 parts (1p2n) 852 | -10/Materials | Entered another Materials area 852 | -9/Materials | Evolved 2 slots: Utility x1, Weapon x1 1204 | -9/Materials | Lost 6 parts (2p1n1u2w) 1356 | -9/Materials | Discovered new exit (range 8) 1682 | -9/Materials | Discovered new exit (range 15) 1809 | -9/Materials | Hacking Suite fried by hacking feedback 1889 | -9/Materials | Entered Storage 1910 | -9/Storage | Met a pair of Derelict thieves 2064 | -9/Storage | Build established: Gunner 2457 | -9/Storage | Discovered new exit (range 5) 2473 | -9/Storage | Entered Materials 2473 | -8/Materials | Accompanied by 1 ally 2473 | -8/Materials | Evolved 2 slots: Utility x2 2751 | -8/Materials | Lost 3 parts (1p1n1u) 2958 | -8/Materials | Lost 4 parts (1n1u2w) 3024 | -8/Materials | Lost 3 parts (2p1n) 3693 | -8/Materials | Central database locked down 3807 | -8/Materials | Lost 4 parts (1p3w) 3843 | -8/Materials | Core integrity fell below 50% 4043 | -8/Materials | Build established: Scavenger-Gunner 4330 | -8/Materials | Lost 6 parts (2p1n2u1w) 4494 | -8/Materials | Discovered new exit (range 16) 4506 | -8/Materials | Core integrity fell below 20% 4537 | -8/Materials | Entered Factory 4537 | -7/Factory | Evolved 2 slots: Utility x2 4561 | -7/Factory | Lost 4 parts (2n2w) 4849 | -7/Factory | Repaired Lrg. Storage Unit 5154 | -7/Factory | Repaired Imp. Cooling System 5199 | -7/Factory | Repaired Imp. Carbon-fiber Leg 5500 | -7/Factory | Cargo convoy interrupted 6033 | -7/Factory | Repaired Imp. Shield Generator 6467 | -7/Factory | Allied Derelicts emerged from ambush trap array 6782 | -7/Factory | P-60 Hacker assimilated allied 90-FSL(g) 7031 | -7/Factory | Assembled infested ambush trap array 7107 | -7/Factory | Core integrity fell below 50% 7187 | -7/Factory | Lost 13 parts (2p1n3u7w) 7189 | -7/Factory | Core integrity fell below 20% 7200 | -7/Factory | Destroyed by D-53 Grenadier with Mini Grenade Launcher Last Messages --------------- dispatching Specialist reinforcements to area. 07158_ System corrupted: Imp. Cooling System rejected. 07159_ Terminal disabled. 07160_ Acquired Imp. Shield Generator. 07183_ K-01 Serf collects debris. 07186_ K-01 Serf destroyed. 07188_ K-01 Serf collects debris. 07188_ K-01 Serf destroyed. 07188_ U-05 Engineer lays Concrete. 07190_ The unstable cave ceiling collapses. 07190_ U-05 Engineer lays Concrete. 07192_ Arm. Huge Wheel destroyed. 07192_ U-05 Engineer lays Concrete. 07195_ The unstable cave ceiling collapses. 07195_ U-05 Engineer lays Concrete. 07199_ The unstable cave ceiling collapses. 07199_ U-05 Engineer lays Concrete. 07199_ R-06 Scavenger collects Lgt. Ion Engine. 07199_ U-05 Engineer lays Concrete. Map ----- +----------------------------------------------------+ | ??????????????????????????? #???????????????? | | ???????????????????????????# #???????????????? | | ???????????????############# #???????????????? | | ???????????????# # #???????????????? | | ???????????????# # #???????????????? | | ???????????????# ! # #???????????????? | | ???????????????# """"""""" / +?????????#?????? | | ???????????????# # #????????!#?????? | | ???????????????# """"""""" # #???????? #?????? | | ???????????????# # #########+#####?? | | ???????????????##/########## #?? | | ###?????????????# #????????# #?? | | #?????????????# #????????# +?? | | #?????????????# #????????# ^ #?? | | ###############/#####????# = #?? | | [ # # #????# %* ###### ??? | | # # #????# ! % #????????? | | # """ """ # #????# ##???????? | | # """ """ # ##???# r ##??????? | | # """ """ # ##??# #??????? | | ### # #??# !# #??????? | | ??# # #??# # #?????? | | ??# [ # #### #?????? | | ##########+##### # #T # ##?????? | | !% d = %k ##?????? | | =% @ [% # ##?????? | | = d # #??????? | | u # #??????? | | r #?????? | | ###########+####### ## # # k k ##?????? | | #?????????????????## %!%| % ######## | | #??????????????????# [ | | | ######?????????????# """" u | | # #?????????????# """" =% % | | #"" #?????????????# """" |[# """""" | | #"T #?????????????# """" # """""" | | #"" #?????????????# # """""" | | #"" #?????????????# """" # """""" ! | | # #?????????????# """" # * | | # #?????????????# """" #=="""""" ? | | / #?????????????# """" #==""""""??? | | # !#?????????????# #%[""""""?????? | | ################???########+"#==""""""??????? | | # ! #?????????? #!! ??????????? | | % # #??????????"" # ""??????????? | | #] """ """ #??????????"" + ""??????????? | | ^+ """"" """"" #??????????"" # "???????????? | | % # """"" """"" #???????????? + "???????????? | | # #???????????? # ???????????? | | ###############????????????? ? ???????????? | +----------------------------------------------------+ Best States ------------- Heat Dissipation 73 Energy Generation 23 Energy Capacity 680 Matter Stores 300 Matter Capacity 300 Sight Range 18 Terrain Scan Density 10 Weapon Cycling 15 Evasion (%) 55 Targeting Accuracy 6 Core Analysis 9 Armor Integrity Analysis 30 Recoil Reduction 2 Particle Charging 15 Offensive Hacking 20 Item Schematics ----------------- Imp. Datajack | -9/Storage | Hacked Cryofiber Web | -8/Materials | Hacked Imp. Heat Sink | -8/Materials | Scanalyzed Arm. Treads | -8/Materials | Scanalyzed Robot Schematics ------------------ None Fabricated ------------ Nothing Repaired ---------- Lrg. Storage Unit | 46% | -7/Factory Imp. Cooling System | 14% | -7/Factory Imp. Carbon-fiber Leg | 14% | -7/Factory Imp. Shield Generator | 7% | -7/Factory Studied --------- Hvy. Laser | -7/Factory | Hacked Alien Tech Used ----------------- None Achievements -------------- None Challenges ------------ None Game ------ Seed MagneticDispersalScythe Manual? 0 Play Time 01:37:23 Cumulative 40.9 hours Start 2026.02.14 @ 16:27:59 End 2026.02.15 @ 00:20:48 Sessions 2 Manual Loads 0 Difficulty Rogue Special Mode None Game No. 42 Rogue 42 Adventurer 0 Explorer 0 Win Type - Total 0 Types 0/0/0/0/0/0/0/0/0/0 Lore% 21 Gallery% 26 Achievement% 19 Wizard Run 0 Options --------- Layout 1 ASCII 0 Keyboard 0 Movement Mouse Keybinds 0 Fullscreen 1 Font 24/Smallcaps Map View 50x35 Zoom Use 0% Tactical HUD 1 Map Filters NONE Filters NONE Steam 1 RUN: 273e70b6-5c82-4740-93fa-f8343fbb6e84